fUSD/lending_fUSD_20241021
["ID","MTS","AMOUNT","RATE_DAILY","PERIOD"]
[340566804,1729495840299,-568.153188,0.00020753,2]
[340566810,1729495842946,-1020.39425619,0.00020753,2]
[340566812,1729495842956,-1153.23,0.00020754,2]
[340566814,1729495842966,-161.04141715,0.00020773,2]
[340566815,1729495842976,-153.21,0.00020789,2]
[340566817,1729495842986,-200.0,0.00020804,2]
[340566818,1729495842995,-200.0,0.00020805,2]
[340566819,1729495843005,-1000.0,0.00020849,2]
[340566820,1729495843017,-250.0,0.00020856,2]
[340566821,1729495843027,-16229.81,0.00021021,2]
[340566822,1729495843039,-1104.65,0.0002121,2]
[340566823,1729495843048,-150.82,0.00021353,2]
[340566824,1729495843059,-150.82,0.00021359,2]
[340566825,1729495843069,-150.82,0.00021365,2]
[340566826,1729495843078,-150.82,0.00021371,2]
[340566827,1729495843088,-150.82,0.00021377,2]
[340566828,1729495843099,-150.82,0.00021383,2]
[340566829,1729495843110,-150.82,0.00021389,2]
[340566830,1729495843120,-150.82,0.00021394,2]
[340566831,1729495843130,-150.82,0.000214,2]
[340566832,1729495843139,-150.82,0.00021406,2]
[340566833,1729495843149,-150.82,0.00021412,2]
[340566834,1729495843159,-150.82,0.00021418,2]
[340566835,1729495843168,-150.82,0.00021424,2]
[340566836,1729495843178,-150.82,0.0002143,2]
[340566837,1729495843187,-150.82,0.00021436,2]
[340566838,1729495843197,-150.82,0.00021442,2]
[340566839,1729495843208,-150.82,0.00021448,2]
[340566840,1729495843218,-150.82,0.00021454,2]
[340566841,1729495843227,-150.82,0.0002146,2]
[340566842,1729495843236,-924.0,0.00021499,2]
[340566843,1729495843246,-160.65,0.00021538,2]
[340566844,1729495843256,-167.68,0.00021727,2]
[340566845,1729495843265,-159.13,0.00021918,2]
[340566846,1729495843275,-167.0,0.00022236,2]
[340566847,1729495843286,-924.0,0.00022574,2]
[340566848,1729495843296,-167.68,0.00022761,2]
[340566849,1729495843306,-479.756,0.00022823,2]
[340566850,1729495843316,-3359.0,0.00022823,2]
[340566851,1729495843327,-1400.819,0.00022823,2]
[340566852,1729495843337,-148.09680041,0.00022823,2]
[340566855,1729495843386,-1.90319959,0.00022823,2]
[340566856,1729495843396,-541.89988141,0.00022823,2]
[340566858,1729495843408,-17.10011859,0.00022823,2]
[340566859,1729495843418,-228.55,0.00022888,2]
[340566860,1729495843428,-200.0,0.00023,2]
[340566861,1729495843439,-705.67895251,0.00023455,2]
[340566862,1729495843452,-294.32104749,0.00023455,2]
[340566863,1729495843461,-58.13466229,0.00023474,2]
[340566871,1729495846278,-1245.0,0.00019823,2]
[340566872,1729495846289,-959.30877908,0.00023474,2]
[340566873,1729496536999,-156.45,0.00010959,2]
[340566874,1729496552075,150.0,0.00010939,2]
[340566875,1729496632123,250.0,0.0001,2]
[340566876,1729496678085,150.0,0.000115,3]
[340566903,1729497032619,-365.33547658,0.000178,3]
[340566904,1729497032641,-892.91167602,0.000178,3]
[340566905,1729497032653,-597.15512323,0.000178,3]
[340566906,1729497032665,-1124.59772417,0.000178,3]
[340566907,1729497032675,-621.602,0.00019722,2]
[340566908,1729497032685,-300.0,0.00019725,2]
[340566909,1729497032696,-969.24,0.00019981,2]
[340566910,1729497032707,-200.0,0.00021,10]
[340566911,1729497032717,-499.99,0.00021461,2]
[340566912,1729497032727,-156.45,0.00021461,2]
[340566913,1729497032738,-200.0,0.00021916,2]
[340566914,1729497032748,-163.61,0.00021958,2]
[340566915,1729497032757,-159.13,0.00022227,2]
[340566916,1729497032768,-969.24,0.00022245,2]
[340566917,1729497032777,-1000.0,0.0002231,2]
[340566918,1729497032787,-250.0,0.00022323,2]
[340566919,1729497032797,-250.0,0.00022376,2]
[340566920,1729497032807,-250.0,0.0002238,2]
[340566921,1729497032817,-200.0,0.00022434,2]
[340566922,1729497032827,-150.0,0.00022521,2]
[340566923,1729497032837,-160.65,0.00022537,2]
[340566924,1729497032847,-5823.49027583,0.0002254,2]
[340566925,1729497032873,-10065.79972417,0.0002254,2]
[340566926,1729497032884,-167.68,0.00022599,2]
[340566927,1729497032894,-83.54522671,0.00022632,2]
[340566928,1729497032906,-66.45477329,0.00022632,2]
[340566929,1729497032918,-2108.25,0.00022745,2]
[340566930,1729497032931,-168.68,0.00022865,2]
[340566931,1729497032942,-128.78030975,0.00023008,2]
[340566945,1729497038234,-151.5,0.0002,5]
[340566947,1729497038245,-13022.27915014,0.00021,2]
[340567000,1729497042505,-935.5804735,0.00021,2]
[340567001,1729497042516,-158.48,0.00023312,2]
[340567002,1729497042526,-2342.7228765,0.00023314,2]
[340567003,1729497042537,-273.70476842,0.00023314,2]
[340567032,1729497043703,-134.57235508,0.00023314,2]
[340567034,1729497043712,-162.75,0.00023401,2]
[340567036,1729497043722,-157.98493129,0.00023473,2]
[340567038,1729497043731,-1006.93193797,0.00023702,2]
[340567040,1729497043741,-152.0,0.00023703,3]
[340567042,1729497043751,-4958.76353295,0.0002388,2]
[340567044,1729497043762,-39.84642181,0.0002399,3]
[340567046,1729497043775,-640.88357819,0.0002399,3]
[340567048,1729497043785,-638.0,0.00024,4]
[340567050,1729497043795,-5490.71072462,0.00024,2]
[340567052,1729497043806,-2112.55460399,0.00024,2]
[340567053,1729497043818,-3177.3396,0.00024,2]
[340567054,1729497043830,-347.16939893,0.00024,2]
[340567055,1729497043843,-6913.43686555,0.00024,2]
[340567067,1729497173805,154.72,0.00010959,2]
[340567073,1729497679555,162.68,0.00010959,2]
[340567077,1729497955201,-151.63404891,0.00017244,2]
[340567090,1729498092463,-217.0,0.00027,120]
[340567099,1729498151804,-512.545002,0.00027671,120]
[340567100,1729498151828,-300.0,0.00028,120]
[340567101,1729498208432,-200.0,0.00027397,60]
[340567102,1729498211415,200.5590671,0.00028,120]
[340567103,1729498212855,150.0,0.00028,120]
[340567104,1729498215330,150.0,0.00028,120]
[340567105,1729498215522,150.0,0.00028,120]
[340567106,1729498215919,150.0,0.00028,120]
[340567107,1729498216115,150.0,0.00028,120]
[340567108,1729498216303,150.0,0.00028,120]
[340567109,1729498216519,150.0,0.00028,120]
[340567110,1729498216712,150.0,0.00028,120]
[340567111,1729498216882,150.0,0.00028,120]
[340567112,1729498217121,152.68085404,0.00028,120]
[340567113,1729498220099,760.0,0.00028,120]
[340567114,1729498221070,760.0,0.00028,120]
[340567115,1729498221130,760.0,0.00028,120]
[340567116,1729498221163,39.71507686,0.00028,120]
[340567123,1729498232328,-777.9651537,0.000177,2]
[340567130,1729498236227,151.94,0.00010959,2]
[340567136,1729498238290,-1214.4589754,0.000177,2]
[340567137,1729498238300,-1274.7322656,0.000177,2]
[340567138,1729498238312,-300.0,0.00017799,2]
[340567139,1729498238322,-769.0,0.000178,3]
[340567140,1729498238332,-621.455,0.00019051,2]
[340567141,1729498238342,-896.62,0.00019746,2]
[340567142,1729498238353,-1102.7,0.00019774,2]
[340567143,1729498238363,-14.0988047,0.0002,2]
[340567144,1729498238375,-210.36084613,0.0002,2]
[340567145,1729498238384,-200.0,0.00020156,2]
[340567146,1729498238394,-499.99,0.00020156,2]
[340567147,1729498238403,-1054.12,0.00020871,2]
[340567148,1729498238412,-162.75,0.00021119,2]
[340567149,1729498238421,-1000.0,0.0002133,2]
[340567150,1729498238432,-27.33745168,0.00021379,2]
[340567151,1729498238608,-2723.66254832,0.00021379,2]
[340567152,1729498238618,-7601.92179317,0.00021415,2]
[340567153,1729498239131,-1070.52382823,0.00021415,2]
[340567157,1729498240288,-2065.5443786,0.00021415,2]
[340567158,1729498240299,-154.72,0.00021461,2]
[340567159,1729498240309,-250.0,0.00021505,2]
[340567160,1729498240320,-250.0,0.00021506,2]
[340567161,1729498240332,-250.0,0.00021589,2]
[340567162,1729498240343,-167.68,0.00021716,2]
[340567163,1729498240355,-159.13,0.00021918,2]
[340567164,1729498240365,-2840.4256219,0.00022,2]
[340567168,1729498243564,-4197.42335232,0.00022,2]
[340567169,1729498243579,-1837.24704195,0.00022,2]
[340567192,1729498246370,-556.43448243,0.00022,2]
[340567195,1729498376668,154.75,0.00016712,2]
[340567196,1729498429997,924.0,0.0001648,2]
[340567197,1729498434453,250.0,0.0001,2]
[340567198,1729498435555,300.0,0.00012,2]
[340567199,1729498436661,350.0,0.00014,2]
[340567200,1729498437747,400.0,0.00016,2]
[340567201,1729498837708,153.21,0.00024982,120]
[340567202,1729499107945,317.67595109,0.00011,2]
[340567203,1729499108025,2800.0,0.00011,2]
[340567204,1729499108097,635191.32881917,0.00011,2]
[340567205,1729499310210,-189.69685531,0.000116,2]
[340567206,1729499310237,-291.71938046,0.000125,2]
[340567207,1729499310265,-5662.53376423,0.00012666,2]
[340567220,1729499401707,156.45,0.00010959,2]
[340567231,1729499432623,-924.0,0.00017347,2]
[340567232,1729499432637,-2974.0,0.000176,3]
[340567233,1729499432646,-955.23,0.00017786,2]
[340567234,1729499432656,-450.0,0.00018,2]
[340567235,1729499432665,-924.0,0.0001826,2]
[340567236,1729499432675,-2566.2864,0.00018367,2]
[340567237,1729499432685,-150.0,0.000187,2]
[340567238,1729499432694,-499.99,0.00019178,2]
[340567239,1729499432704,-194.16,0.00019178,2]
[340567240,1729499432713,-924.0,0.00019222,2]
[340567241,1729499432723,-179.99,0.00019452,3]
[340567242,1729499432732,-150.0,0.00019522,2]
[340567243,1729499432742,-1151.0,0.00019522,2]
[340567244,1729499432752,-1084.0,0.00019522,2]
[340567245,1729499432761,-250.0,0.00019683,2]
[340567246,1729499432771,-665.22,0.00019747,2]
[340567247,1729499432781,-800.0,0.00019792,2]
[340567248,1729499432790,-250.0,0.00019792,2]
[340567249,1729499432800,-7779.56,0.00019885,2]
[340567250,1729499432809,-2470.08,0.00019942,2]
[340567251,1729499432819,-153.21,0.00019986,2]
[340567252,1729499432829,-955.23,0.0002005,2]
[340567253,1729499432839,-924.0,0.00020183,2]
[340567254,1729499432848,-200.0,0.00020929,2]
[340567255,1729499432858,-2391.9,0.00020934,2]
[340567256,1729499432868,-1962.85,0.00020987,2]
[340567257,1729499432878,-4459.99,0.0002103,2]
[340567258,1729499432887,-200.0,0.00021064,2]
[340567259,1729499432897,-250.0,0.00021064,2]
[340567260,1729499432907,-200.0,0.00021129,2]
[340567261,1729499432916,-924.0,0.00021192,2]
[340567262,1729499432926,-206.31,0.000215,7]
[340567263,1729499432935,-172.61,0.0002154,2]
[340567264,1729499432945,-180.0,0.0002173,2]
[340567265,1729499432955,-6132.54082544,0.0002189,2]
[340567266,1729499432967,-3446.01480046,0.0002189,2]
[340567267,1729499432976,-64.77639954,0.0002189,2]
[340567268,1729499432991,-86.22360046,0.0002189,2]
[340567269,1729499433000,-151.0,0.0002189,2]
[340567270,1729499433010,-33.04227181,0.0002189,2]
[340567271,1729499433021,-196.28082619,0.0002189,2]
[340567272,1729499433031,-156.777242,0.0002189,2]
[340567273,1729499433040,-152.30228,0.0002189,2]
[340567274,1729499433050,-47.11367304,0.0002189,2]
[340567275,1729499433062,-109.18130596,0.0002189,2]
[340567276,1729499433072,-151.0,0.0002189,2]
[340567277,1729499433082,-159.13,0.00021918,2]
[340567278,1729499433091,-151.0,0.00021989,7]
[340567279,1729499433101,-151.0,0.00021989,7]
[340567280,1729499433111,-151.0,0.00021989,7]
[340567281,1729499433121,-151.0,0.0002199,7]
[340567282,1729499433131,-151.0,0.0002199,7]
[340567283,1729499433142,-151.0,0.0002199,7]
[340567284,1729499433157,-151.0,0.0002199,7]
[340567285,1729499433167,-229.323098,0.0002199,7]
[340567286,1729499433177,-229.323098,0.0002199,7]
[340567287,1729499433187,-151.0,0.0002199,7]
[340567288,1729499433196,-45.07689816,0.00021999,10]
[340567289,1729499433213,-1093.94528111,0.00021999,10]
[340567290,1729499433223,-407.80418534,0.00022,2]
[340567291,1729499433236,-1523.59407502,0.00022,2]
[340567292,1729499433248,-12666.77124104,0.00022,2]
[340567293,1729499433258,-151.0,0.00022,7]
[340567294,1729499433268,-153.218146,0.00022,7]
[340567295,1729499433278,-154.164033,0.00022,7]
[340567296,1729499433627,-154.497043,0.00022,7]
[340567297,1729499433639,-156.218377,0.00022,7]
[340567298,1729499433649,-151.0,0.00022,7]
[340567299,1729499433659,-152.481573,0.00022,7]
[340567300,1729499433671,-151.0,0.00022,7]
[340567301,1729499433682,-151.0,0.00022,7]
[340567302,1729499433692,-151.0,0.00022,7]
[340567303,1729499433703,-151.0,0.00022,7]
[340567304,1729499433713,-229.323098,0.00022,7]
[340567305,1729499433724,-229.323098,0.00022,7]
[340567306,1729499433733,-151.0,0.00022,7]
[340567307,1729499433745,-151.0,0.00022208,7]
[340567308,1729499433755,-9578.55562589,0.00022217,2]
[340567309,1729499433766,-151.0,0.00022217,7]
[340567310,1729499433776,-229.323098,0.00022217,7]
[340567311,1729499433786,-229.323098,0.00022217,7]
[340567312,1729499433796,-151.0,0.00022217,7]
[340567313,1729499433806,-924.0,0.00022251,2]
[340567314,1729499433815,-800.0,0.00022266,2]
[340567315,1729499433825,-955.23,0.00022314,2]
[340567316,1729499433835,-300.0,0.00022447,2]
[340567317,1729499433845,-150.0,0.00022522,2]
[340567318,1729499433855,-1151.0,0.00022522,2]
[340567319,1729499433866,-453.428,0.00022522,2]
[340567320,1729499433876,-9578.55562589,0.00022544,2]
[340567321,1729499433886,-151.0,0.00022544,7]
[340567322,1729499433896,-229.323098,0.00022544,7]
[340567323,1729499433906,-229.323098,0.00022544,7]
[340567324,1729499433916,-151.0,0.00022544,7]
[340567325,1729499433926,-228.55,0.00022561,2]
[340567326,1729499433935,-174.42,0.00022591,2]
[340567327,1729499433945,-424.52,0.00022658,2]
[340567328,1729499433955,-424.52,0.00022658,2]
[340567329,1729499433965,-424.52,0.00022658,2]
[340567330,1729499433974,-424.52,0.00022658,2]
[340567331,1729499433984,-424.52,0.00022658,2]
[340567332,1729499433993,-424.52,0.00022658,2]
[340567333,1729499434003,-424.52,0.00022658,2]
[340567334,1729499434012,-151.0,0.00022694,7]
[340567335,1729499434022,-980.0,0.000227,2]
[340567336,1729499434031,-155.076158,0.00022704,7]
[340567337,1729499434041,-211.0,0.0002284,2]
[340567338,1729499434051,-429.99,0.00022849,2]
[340567339,1729499434060,-359.53,0.00022849,2]
[340567340,1729499434070,-359.53,0.00022849,2]
[340567341,1729499434079,-429.99,0.00022849,2]
[340567342,1729499434088,-429.99,0.00022849,2]
[340567343,1729499434098,-359.53,0.00022849,2]
[340567344,1729499434108,-429.99,0.00022849,2]
[340567345,1729499434117,-359.53,0.00022849,2]
[340567346,1729499434127,-359.53,0.00022849,2]
[340567347,1729499434136,-429.99,0.00022849,2]
[340567348,1729499434146,-359.53,0.00022849,2]
[340567349,1729499434156,-429.99,0.00022849,2]
[340567350,1729499434165,-359.53,0.00022849,2]
[340567351,1729499434175,-429.99,0.00022849,2]
[340567352,1729499434184,-151.0,0.0002287,7]
[340567353,1729499434193,-229.323098,0.0002287,7]
[340567354,1729499434203,-229.323098,0.0002287,7]
[340567355,1729499434212,-151.0,0.0002287,7]
[340567356,1729499434221,-7350.15749709,0.0002287,2]
[340567357,1729499434233,-552.35136817,0.0002287,2]
[340567358,1729499434245,-1676.04676063,0.0002287,2]
[340567359,1729499434255,-151.0,0.000229,7]
[340567360,1729499434265,-298.541351,0.00022964,7]
[340567361,1729499434274,-424.52,0.00023041,2]
[340567362,1729499434283,-1281.91,0.00023041,2]
[340567363,1729499434293,-424.52,0.00023041,2]
[340567364,1729499434303,-151.0,0.00023155,7]
[340567365,1729499434313,-229.323098,0.00023155,7]
[340567366,1729499434322,-229.323098,0.00023155,7]
[340567367,1729499434332,-151.0,0.00023155,7]
[340567368,1729499434342,-150.0,0.00023178,2]
[340567369,1729499434351,-359.53,0.00023178,2]
[340567370,1729499434360,-535.49,0.00023178,2]
[340567371,1729499434370,-487.69951757,0.00023178,2]
[340567372,1729499434382,-80.00048243,0.00023178,2]
[340567373,1729499434392,-150.0,0.00023178,2]
[340567374,1729499434402,-429.99,0.00023178,2]
[340567375,1729499434411,-359.53,0.00023178,2]
[340567376,1729499434421,-151.0,0.00023197,7]
[340567377,1729499434431,-229.323098,0.00023197,7]
[340567378,1729499434441,-229.323098,0.00023197,7]
[340567379,1729499434451,-204.131651,0.00023197,7]
[340567380,1729499434461,-9578.55562589,0.00023197,2]
[340567381,1729499434470,-211.0,0.0002326,2]
[340567382,1729499434480,-150.41,0.0002337,2]
[340567383,1729499434490,-150.0,0.0002337,2]
[340567384,1729499434499,-150.0,0.0002337,2]
[340567385,1729499434514,-150.0,0.0002337,2]
[340567386,1729499434524,-167.0,0.00023413,2]
[340567387,1729499434533,-425.14,0.00023514,3]
[340567388,1729499434543,-9578.55562589,0.00023524,2]
[340567389,1729499434552,-170.973466,0.00023524,7]
[340567390,1729499434561,-229.323098,0.00023524,7]
[340567391,1729499434571,-229.323098,0.00023524,7]
[340567392,1729499434580,-156.45,0.00023562,2]
[340567393,1729499434590,-1804.0419,0.00023564,2]
[340567394,1729499434599,-1000.0,0.00023564,2]
[340567395,1729499434609,-10106.70303402,0.00023664,2]
[340567396,1729499434621,-13698.38536391,0.00023664,2]
[340567397,1729499434635,-684.71908266,0.00023664,2]
[340567398,1729499434676,-1532.300026,0.00023664,2]
[340567399,1729499434688,-73977.89249341,0.00023664,2]
[340567400,1729499434697,-6994.1977,0.00023664,2]
[340567401,1729499434707,-211.0,0.0002367,2]
[340567402,1729499434717,-229.323098,0.00023764,7]
[340567403,1729499434727,-229.323101,0.00023764,7]
[340567404,1729499434738,-200.0,0.0002377,2]
[340567405,1729499434748,-9692.2948,0.00023774,2]
[340567406,1729499434759,-1000.0,0.000238,2]
[340567407,1729499434768,-300.0,0.00023817,2]
[340567408,1729499434778,-9578.55562589,0.00023851,2]
[340567409,1729499434788,-154.192419,0.00023874,7]
[340567410,1729499434797,-152.592448,0.00023874,7]
[340567411,1729499434807,-152.0,0.00023874,3]
[340567412,1729499434817,-365.1413,0.0002389,2]
[340567413,1729499434827,-1654.3905,0.0002389,2]
[340567414,1729499434837,-424.52,0.0002389,2]
[340567415,1729499434846,-226.1059178,0.0002389,2]
[340567416,1729499434859,-198.4140822,0.0002389,2]
[340567417,1729499434868,-424.52,0.0002389,2]
[340567418,1729499434878,-141.2252564,0.0002389,2]
[340567419,1729499434889,-283.2947436,0.0002389,2]
[340567420,1729499434899,-424.52,0.0002389,2]
[340567421,1729499434908,-424.52,0.0002389,2]
[340567422,1729499434918,-424.52,0.0002389,2]
[340567423,1729499434927,-424.52,0.0002389,2]
[340567424,1729499434937,-424.52,0.0002389,2]
[340567425,1729499434946,-165.04,0.0002389,2]
[340567426,1729499434955,-1000.0,0.00023898,2]
[340567427,1729499434965,-254.9069,0.00023898,2]
[340567428,1729499434977,-1090.3382,0.00023898,2]
[340567429,1729499434988,-481.1317,0.00023898,2]
[340567430,1729499434998,-508.13395929,0.00023914,2]
[340567431,1729499435007,-500.0,0.00023973,2]
[340567432,1729499435016,-150.7281396,0.00023973,2]
[340567433,1729499435025,-500.0,0.00023973,2]
[340567434,1729499435034,-500.0,0.00023973,2]
[340567435,1729499435044,-5468.20429423,0.0002398,4]
[340567436,1729499435056,-251.40209908,0.0002398,4]
[340567437,1729499438396,-447.64863183,0.00019522,2]
[340567438,1729499438507,-350.05534443,0.00019522,2]
[340567439,1729499438519,-11.29602374,0.00019522,2]
[340567440,1729499438528,-266.3,0.00023654,2]
[340567441,1729499438538,-266.3,0.0002397,2]
[340567442,1729499438548,-266.3,0.0002397,2]
[340567443,1729499438558,-86238.26465709,0.0002398,4]
[340567444,1729499438567,-35983.5147589,0.0002398,4]
[340567445,1729499438576,-266.3,0.0002398,2]
[340567446,1729499438586,-266.3,0.0002398,2]
[340567447,1729499438595,-7996.33661308,0.00023981,4]
[340567448,1729499438605,-152.23641975,0.0002399,2]
[340567449,1729499438616,-33114.9378255,0.0002399,4]
[340567494,1729499440399,-2033.6,0.00023564,2]
[340567495,1729499443606,-424.52,0.00022658,2]
[340567496,1729499443617,-429.99,0.00022849,2]
[340567497,1729499443627,-359.53,0.00023178,2]
[340567498,1729499443638,-475.85999975,0.00023564,2]
[340567503,1729499446308,-700.0,0.00016711,2]
[340567504,1729499446318,-700.0,0.00017807,2]
[340567505,1729499446328,-2834.84071832,0.00023564,2]
[340567506,1729499446479,-6859.6,0.00023564,2]
[340567507,1729499446491,-6978.66378193,0.00023564,2]
[340567508,1729499446502,-942.7379,0.00023564,2]
[340567509,1729499446512,-288.5,0.00023989,3]
[340567510,1729499446521,-10711.60599212,0.0002399,4]
[340567531,1729499872734,768.0,0.0002501,120]
[340567532,1729499952993,155.95,0.00010959,2]
[340567533,1729500241165,250.0,0.0001,2]
[340567534,1729500398107,150.0,0.000115,3]
[340567535,1729500464919,162.68,0.00010959,2]
[340567551,1729500631485,-300.0,0.00012,2]
[340567552,1729500631495,-322.62451137,0.00016711,2]
[340567553,1729500631540,-177.37548863,0.00016711,2]
[340567554,1729500631550,-165.18951137,0.00016711,2]
[340567555,1729500631651,-1116.07195964,0.00016711,2]
[340567556,1729500631708,-1018.73852899,0.00016711,2]
[340567557,1729500631718,-2300.0,0.00017807,2]
[340567558,1729500631727,-856.23288152,0.000179,3]
[340567559,1729500631740,-915.29707946,0.000179,3]
[340567560,1729500631752,-749.1,0.000179,3]
[340567561,1729500631764,-273.37003902,0.000179,3]
[340567562,1729500631773,-150.0,0.00018877,2]
[340567563,1729500631783,-421.51368121,0.00018903,2]
[340567575,1729500637620,-3291.19143319,0.000179,2]
[340567576,1729500637631,-278.48631879,0.00018903,2]
[340567577,1729500637642,-2300.0,0.00018903,2]
[340567578,1729500637652,-500.0,0.00018903,2]
[340567579,1729500637662,-499.99,0.00019452,2]
[340567580,1729500637672,-839.51,0.00019608,2]
[340567581,1729500637683,-2300.0,0.00019999,2]
[340567582,1729500637694,-150.0,0.000201,2]
[340567583,1729500637704,-150.0,0.00020826,2]
[340567584,1729500637713,-754.22189788,0.00020826,2]
[340567585,1729500637725,-396.77810212,0.00020826,2]
[340567586,1729500637735,-154.31720266,0.00021095,2]
[340567594,1729500639546,-545.68279734,0.00021095,2]
[340567595,1729500639556,-500.0,0.00021095,2]
[340567596,1729500639567,-500.0,0.00021095,2]
[340567597,1729500639576,-200.0,0.00021499,2]
[340567598,1729500639586,-169.11,0.00021502,2]
[340567599,1729500639597,-250.0,0.00021503,2]
[340567600,1729500639606,-562.71307449,0.00021531,2]
[340567601,1729500639618,-866.57692551,0.00021531,2]
[340567602,1729500639629,-237.58307449,0.00021555,2]
[340567603,1729500642069,-12.41692551,0.00021555,2]
[340567604,1729500642079,-250.0,0.00021572,2]
[340567605,1729500642090,-480.0,0.00021679,2]
[340567606,1729500642100,-424.52,0.00021699,2]
[340567607,1729500642109,-200.0,0.00021724,2]
[340567608,1729500642119,-154.98865393,0.00021724,2]
[340567625,1729500642526,-122.73834607,0.00021724,2]
[340567628,1729500642536,-188.73,0.00021769,2]
[340567630,1729500642546,-839.51,0.00021872,2]
[340567632,1729500642556,-159.13,0.00021918,2]
[340567633,1729500642566,-181.39,0.00022,7]
[340567634,1729500642576,-429.99,0.00022027,2]
[340567635,1729500642586,-429.99,0.00022027,2]
[340567636,1729500642597,-429.99,0.00022027,2]
[340567637,1729500642607,-424.52,0.00022082,2]
[340567638,1729500642616,-424.52,0.00022082,2]
[340567639,1729500642626,-424.52,0.00022082,2]
[340567640,1729500642636,-424.52,0.00022082,2]
[340567641,1729500642646,-424.52,0.00022082,2]
[340567642,1729500642656,-424.52,0.00022082,2]
[340567643,1729500642667,-163.54,0.00022114,2]
[340567644,1729500642676,-500.0,0.00022191,2]
[340567645,1729500642687,-1762.13233661,0.00022191,2]
[340567646,1729500642774,-367.51401831,0.00022191,2]
[340567647,1729500642786,-170.35364508,0.00022191,2]
[340567648,1729500642795,-520.0,0.00022222,2]
[340567649,1729500642806,-359.53,0.00022356,2]
[340567650,1729500642815,-129.8178864,0.00022356,2]
[340567651,1729500642832,-229.7121136,0.00022356,2]
[340567652,1729500642842,-359.53,0.00022356,2]
[340567653,1729500642853,-359.53,0.00022356,2]
[340567654,1729500642863,-359.53,0.00022356,2]
[340567655,1729500642874,-359.53,0.00022356,2]
[340567656,1729500642884,-429.99,0.00022356,2]
[340567657,1729500642894,-359.53,0.00022356,2]
[340567659,1729500642903,-429.99,0.00022356,2]
[340567660,1729500642913,-246.13670211,0.00022356,2]
[340567768,1729500645494,-424.52,0.00022082,2]
[340567769,1729500645505,-55.18,0.00022356,2]
[340567776,1729500645602,-128.67329789,0.00022356,2]
[340567777,1729500645613,-359.53,0.00022356,2]
[340567779,1729500645623,-429.99,0.00022356,2]
[340567780,1729500645633,-359.53,0.00022356,2]
[340567782,1729500645644,-155.95,0.00022416,2]
[340567784,1729500645655,-164.51,0.00022556,2]
[340567786,1729500645664,-167.0,0.00022847,2]
[340567787,1729500645674,-188.73,0.00022857,2]
[340567789,1729500645684,-424.52,0.00023041,2]
[340567791,1729500645694,-424.52,0.00023041,2]
[340567792,1729500645704,-260.66394532,0.00023041,2]
[340567814,1729500979542,153.09,0.00010959,2]
[340567829,1729501831759,-643.71419954,0.000165,2]
[340567830,1729501831816,-2999.0,0.000165,2]
[340567831,1729501831829,-1977.83426653,0.000165,2]
[340567832,1729501831840,-833.79793316,0.000165,2]
[340567833,1729501831928,-748.363045,0.000165,2]
[340567838,1729501837782,-8674.0,0.000164,2]
[340567839,1729501837792,-11521.0,0.000169,3]